Cogmind - Beta 16.1 @@@ ROGUE MODE // 2026.04.24 @ 07:12:37 Player: coopco Result: Destroyed by as-37037 with Assembled Blade Performance ------------- Evolutions (0) 0 Regions Visited (4) 800 Robots Destroyed (6) 30 Value Destroyed (230) 230 Prototype IDs (25) 500 Alien Tech Used (0) 0 Bonus (300) 300 TOTAL SCORE: 1860 Bonus ------- Aligned with FarCom 300 Cogmind --------- Core Integrity 0/250 Matter 300/300 Energy 99/100 System Corruption 0% Temperature Cool (0) Movement Core (50) Location -9/Mines Parts ------- > --- POWER (1) -------- (None) > --- PROPULSION (2) --- (None) > --- UTILITY (2) ------ Signal Interpreter > --- WEAPON (2) ------- (None) > --- INVENTORY (5) ---- Large Storage Unit Cloak of Protection Bore Cannon Mining Laser Peak State ------------ > --- POWER ------------ Ion Engine > --- PROPULSION ------- Aluminum Leg Flexi-carbon Leg > --- UTILITY ---------- Small Storage Unit > --- WEAPON ----------- Assault Rifle Light Cannon > --- INVENTORY -------- Large Storage Unit Sensor Array Cloak of Protection Medium Laser Small Laser Bore Cannon Mining Laser [Rating: 11] Favorites ----------- Power Ion Engine Engine Ion Engine Propulsion Light Treads Treads Light Treads Leg Flexi-carbon Leg Utility Small Storage Unit Device Structural Scanner Storage Small Storage Unit Processor Signal Interpreter Protection Light Armor Plating Weapon Medium Laser Energy Gun Medium Laser Ballistic Gun Assault Rifle Ballistic Cannon Light Cannon Build | -11 -10 -10 -10 -9 ------- Run | Yrd Mat Min Exi Min Slots Evolved . | . . . . . Power . | . . . . . Propulsion . | . . . . . Utility . | . . . . . Weapon . | . . . . . Parts Attached 16 | 6 3 . 2 5 Power 2 | 1 1 . . . Engine 2 | 1 1 . . . Core . | . . . . . Reactor . | . . . . . Propulsion 5 | 2 . . 1 2 Treads 3 | 2 . . 1 . Leg 2 | . . . . 2 Wheel . | . . . . . Hover . | . . . . . Flight . | . . . . . Utility 4 | 1 1 . 1 1 Device 1 | . 1 . . . Storage 1 | 1 . . . . Processor 1 | . . . . 1 Hackware . | . . . . . Protection 1 | . . . 1 . Artifact . | . . . . . Weapon 5 | 2 1 . . 2 Energy Gun 2 | 1 . . . 1 Energy Cannon . | . . . . . Ballistic Gun 2 | 1 . . . 1 Ballistic Cannon 1 | . 1 . . . Launcher . | . . . . . Special Weapon . | . . . . . Impact Weapon . | . . . . . Slashing Weapon . | . . . . . Piercing Weapon . | . . . . . Special Melee Weapon . | . . . . . Unidentified Prototypes . | . . . . . Parts Lost 9 | . 2 . . 7 Power 1 | . . . . 1 Propulsion 1 | . . . . 1 Utility 2 | . 1 . . 1 Weapon 5 | . 1 . . 4 Highest Loss Streak 5 | . 1 . . 5 To Critical Strikes . | . . . . . Average Backups 7 | 3 6 7 7 6 Power . | . . . . . Propulsion 1 | 1 1 2 1 . Utility 2 | . 1 2 3 2 Weapon 2 | . 2 3 3 3 Tool/Special . | . . . . . Unused Backups 6 | . . . . 6 Power . | . . . . . Propulsion . | . . . . . Utility 3 | . . . . 3 Weapon 3 | . . . . 3 Tool/Special . | . . . . . Average Slot Usage (%) 83 | . 86 85 85 77 Engine 13 | . 14 14 14 10 Treads 25 | . 28 28 28 18 Storage 13 | . 14 14 14 11 Protection 2 | . . . . 8 Energy Gun 13 | . 14 14 14 11 Ballistic Gun 4 | . 13 . . 2 Ballistic Cannon 9 | . . 14 14 10 Peak Build Rating 11 | 6 7 6 8 11 Average Rating 6 | 3 6 6 6 6 On Entrance 5 | . 6 6 6 8 Avg Prop Armor Cover (%) . | . . . . . Naked Turns . | . . . . . Heaviest Build 18 | 12 15 15 18 18 Greatest Support 40 | 40 40 40 40 40 Greatest Overweight (x) 3 | 3 . . . 1 Average Overweight (x) . | 2 . . . . Largest Inventory Capacity 8 | 8 8 8 8 8 Average Capacity 7 | 7 8 8 8 7 Most Carried 8 | 5 8 7 8 8 Average Carried 7 | 3 6 7 7 6 Final Capacity 8 | 8 8 8 8 5 Final Carried 7 | 3 7 7 7 4 Class Distribution -------------------- 100% | Mutant Dominant Class ---------------- Mutant | -10/Materials Mutant | -10/Mines Mutant | -10/Exiles Mutant | -9/Mines Resources | -11 -10 -10 -10 -9 ----------- Run | Yrd Mat Min Exi Min Matter Collected 638 | 208 136 . . 294 Remotely . | . . . . . Salvage Created 337 | . 274 . . 63 Parts 11 | . 11 . . . Haulers Intercepted . | . . . . . Recyclers Shooed . | . . . . . Parts Field Recycled . | . . . . . Retrieved Matter . | . . . . . Parts Self-Destructed . | . . . . . Prevented . | . . . . . Parts Restored . | . . . . . Kills | -11 -10 -10 -10 -9 ------- Run | Yrd Mat Min Exi Min Combat Hostiles Destroyed 13 | . 6 . . 7 Guns 8 | . 6 . . 2 Cannons 5 | . . . . 5 Classes Destroyed 2 | . 1 . . 1 Grunt 6 | . 6 . . . Assembled 7 | . . . . 7 Best Kill Streak 5 | . 5 . . 4 Combat Bots Only 5 | . 5 . . 4 Max Kills in Single Turn 2 | . 1 . . 2 Gunslinging . | . . . . . Exploded . | . . . . . Melee . | . . . . . Uniques/NPCs Destroyed . | . . . . . Combat | -11 -10 -10 -10 -9 -------- Run | Yrd Mat Min Exi Min Hostile Shots Fired 129 | . 49 . . 80 Missed 28 | . 9 . . 19 Hits 101 | . 40 . . 61 Melee 11 | . . . . 11 Projectile 90 | . 40 . . 50 Critical Strikes 3 | . . . . 3 Damage Taken 1538 | . 482 . . 1056 Core 262 | . 48 . . 214 Absorbed by Shields . | . . . . . Core Remaining (%) 100 | 100 . . . . Volleys Fired 63 | . 23 . 1 39 Largest 2 | . 2 . 2 2 Hottest 90 | . 70 . 80 90 Shots Fired 122 | . 46 . 2 74 Gun 87 | . 46 . 1 40 Cannon 35 | . . . 1 34 Launcher . | . . . . . Special . | . . . . . Kinetic 76 | . 23 . 1 52 Thermal 46 | . 23 . 1 22 Explosive . | . . . . . Electromagnetic . | . . . . . Robot Hit Streak 19 | . 15 . . 19 Robot Miss Streak 6 | . 2 . . 6 Penetration Max . | . . . . . Secondary Targets 2 | . 2 . . . Max Gunslinging Chain 1 | . 1 . . . Shots Hit Robots 68 | . 34 . . 34 Core Hits 32 | . 15 . . 17 Critical Kills . | . . . . . Critical Parts Destroyed . | . . . . . Critical Strikes 3 | . 3 . . . Burn 3 | . 3 . . . Melee Attacks . | . . . . . Impact . | . . . . . Slashing . | . . . . . Piercing . | . . . . . Sneak Attacks . | . . . . . Combat Hostiles . | . . . . . Follow-up Attacks . | . . . . . Damage Inflicted 994 | . 450 . . 544 Guns 652 | . 450 . . 202 Cannons 342 | . . . . 342 Explosions . | . . . . . Melee . | . . . . . Ramming . | . . . . . Kinetic 640 | . 183 . . 457 Thermal 354 | . 267 . . 87 Explosive . | . . . . . Electromagnetic . | . . . . . Impact . | . . . . . Slashing . | . . . . . Piercing . | . . . . . Highest Corruption . | . . . . . Average Corruption . | . . . . . Corruption Purged . | . . . . . Corruption Blocked . | . . . . . Overload Shots . | . . . . . Overflow Damage . | . . . . . Projectiles . | . . . . . Explosions . | . . . . . Melee . | . . . . . Knockbacks 7 | . . . . 7 Impact . | . . . . . Kinetic 5 | . . . . 5 Secondary 2 | . . . . 2 Self-Inflicted Damage . | . . . . . Shots . | . . . . . Rammed . | . . . . . Targets Rammed . | . . . . . Kicked . | . . . . . Crushed . | . . . . . Highest Temperature 435 | . 168 . 18 435 Average Temperature 151 | . 81 . 12 211 Received Heat Transfer 379 | . 279 . . 100 Effects 5 | . . . . 5 Shutdowns 2 | . . . . 2 Energy Bleed 1 | . . . . 1 Matter Decay 1 | . . . . 1 Short Circuit 1 | . . . . 1 Siege Activations . | . . . . . Martial Activations . | . . . . . Shielding Activations . | . . . . . Robots Disrupted . | . . . . . Combat Hostiles . | . . . . . Robots Corrupted . | . . . . . Combat Hostiles . | . . . . . Parts Fried . | . . . . . Impact Corruptions . | . . . . . Robots Melted . | . . . . . Combat Hostiles . | . . . . . Parts Melted 3 | . 3 . . . Heat Transferred 1246 | . 999 . . 247 Parts Sabotaged . | . . . . . Parts Stolen . | . . . . . Parts Stripped . | . . . . . Power Chain Reactions . | . . . . . Alert | -11 -10 -10 -10 -9 ------- Run | Yrd Mat Min Exi Min Maximum Alert Level . | . . . . . Low Security (%) 100 | 100 100 100 . 100 Level 1 . | . . . . . Level 2 . | . . . . . Level 3 . | . . . . . Level 4 . | . . . . . Level 5 . | . . . . . High Security . | . . . . . Max Security . | . . . . . Peak Influence 105 | . 105 . . . Initial . | . . . . . Average 17 | . 41 . . . Influence Increases 177 | . 177 . . . Destroy 0b10 Robot/C 120 | . 120 . . . Destroy Leader 30 | . 30 . . . Successful Hack 12 | . 12 . . . Lose Combat Pursuer 15 | . 15 . . . Influence Decreases 177 | . 177 . . . Time Decay 167 | . 167 . . . Lost Part 10 | . 10 . . . Squads Dispatched 2 | . 2 . . . Investigation . | . . . . . Extermination . | . . . . . Reinforcement 2 | . 2 . . . Assault . | . . . . . Garrison . | . . . . . Intercept . | . . . . . Searches Triggered . | . . . . . Construction Impeded . | . . . . . Haulers Reinforced . | . . . . . Active Scanning Responses . | . . . . . Cargo Convoy Interrupts . | . . . . . Stealth | -11 -10 -10 -10 -9 --------- Run | Yrd Mat Min Exi Min Distress Signals 2 | . 2 . . . Communications Jammed . | . . . . . Distress Signals . | . . . . . Times Spotted 46 | . 14 . . 32 Peak Tracking Total 10 | . 5 . . 10 Tactical Retreats 10 | . 1 . . 9 Traps | -11 -10 -10 -10 -9 ------- Run | Yrd Mat Min Exi Min Traps Triggered . | . . . . . Indirectly . | . . . . . Trap Hack Attempts . | . . . . . Triggered . | . . . . . Disarmed . | . . . . . Reprogrammed . | . . . . . Reused . | . . . . . Traps Extracted . | . . . . . Installed . | . . . . . Triggered . | . . . . . Machines | -11 -10 -10 -10 -9 ---------- Run | Yrd Mat Min Exi Min Machines Disabled . | . . . . . Max in Single Turn . | . . . . . Machines Repaired . | . . . . . Machines Dismantled . | . . . . . Machines Sabotaged . | . . . . . Overloaded Fab Kills . | . . . . . Hacking | -11 -10 -10 -10 -9 --------- Run | Yrd Mat Min Exi Min Machines Accessed 5 | . 4 . 1 . Terminals 4 | . 4 . . . Fabricators . | . . . . . Repair Stations . | . . . . . Recycling Units . | . . . . . Scanalyzers . | . . . . . Garrison Access . | . . . . . Total Hacks 9 | . 8 . 1 . Successful 4 | . 3 . 1 . Failed 5 | . 5 . . . Catastrophic 1 | . 1 . . . Database Lockouts . | . . . . . Manual 2 | . 1 . 1 . Terminals 8 | . 8 . . . Fabricators . | . . . . . Repair Stations . | . . . . . Recycling Units . | . . . . . Scanalyzers . | . . . . . Garrison Access . | . . . . . Terminal Hacks 4 | . 3 . 1 . Prototype ID Bank 1 | . 1 . . . Branch Access Points 1 | . 1 . . . Registered Components 1 | . 1 . . . Proto ID Catalog 1 | . . . 1 . Fabricator Hacks . | . . . . . Repair Station Hacks . | . . . . . Recycling Unit Hacks . | . . . . . Scanalyzer . | . . . . . Garrison Access Hacks . | . . . . . Unauthorized Hacks . | . . . . . Terminals . | . . . . . Fabricators . | . . . . . Repair Stations . | . . . . . Recycling Units . | . . . . . Scanalyzers . | . . . . . Garrison Access . | . . . . . Data Cores Recovered . | . . . . . Used . | . . . . . Hacking Detections 4 | . 4 . . . Full Trace Events . | . . . . . Feedback Events . | . . . . . Feedback Blocked . | . . . . . Robot Schematics Acquired . | . . . . . Robots Built . | . . . . . Authchips . | . . . . . Time . | . . . . . Total Robot Build Rating . | . . . . . Part Schematics Acquired . | . . . . . Parts Built . | . . . . . Authchips . | . . . . . Time . | . . . . . Total Part Build Rating . | . . . . . Part Studies Acquired . | . . . . . Parts Repaired . | . . . . . Time . | . . . . . Parts Recycled . | . . . . . Recycled Matter . | . . . . . Retrieved Matter . | . . . . . Retrieved Components . | . . . . . Parts Scanalyzed . | . . . . . Part Schematics Acquired . | . . . . . Parts Damaged . | . . . . . Bothacking | -11 -10 -10 -10 -9 ------------ Run | Yrd Mat Min Exi Min Used RIF Installer . | . . . . . Robots Hacked . | . . . . . Non-combat . | . . . . . Combat . | . . . . . Robot Hacks Applied . | . . . . . Relay Couplers Released . | . . . . . Fabnet Peak Effective % . | . . . . . Robots Rewired . | . . . . . Allies Hacked . | . . . . . Hacks Repelled . | . . . . . Allies | -11 -10 -10 -10 -9 -------- Run | Yrd Mat Min Exi Min Total Allies 1 | . . . . 1 Largest Group 1 | . . . . 1 Highest-Rated Group 31 | . . . . 31 Highest-Rated Ally 31 | . . . . 31 Total Orders . | . . . . . Ally Attacks 2 | . . . . 2 Total Damage 20 | . . . . 20 Kills 1 | . . . . 1 Allies Corrupted . | . . . . . Allies Melted . | . . . . . Intel | -11 -10 -10 -10 -9 ------- Run | Yrd Mat Min Exi Min Active Infowar (turns) 71 | . 71 . . . Structural 71 | . 71 . . . Robot Analysis Total . | . . . . . Derelict Logs Recovered 2 | . . 1 . 1 Drone Launches . | . . . . . Drone Recoveries . | . . . . . Exploration | -11 -10 -10 -10 -9 ------------- Run | Yrd Mat Min Exi Min Turns Passed 2036 | 80 504 85 832 535 Spaces Moved 1269 | 40 263 54 516 396 Core 247 | 39 . . . 208 Treads 1000 | 1 263 54 516 166 Legs 22 | . . . . 22 Wheels . | . . . . . Hover . | . . . . . Flight . | . . . . . Fastest Speed 50 | 50 160 160 160 50 Average Speed 141 | 166 160 160 160 101 Slowest Speed 200 | 200 160 160 160 160 Overloaded Moves . | . . . . . Propulsion Burnouts . | . . . . . Robots Hopped . | . . . . . Potential Cave-ins . | . . . . . Cave-ins Triggered . | . . . . . Exploration Rate (%) 43 | 3 48 9 90 66 Regions Visited 4 Branch Regions 3 Pre-discovered Areas 1 | . . 1 . . Known Exits Taken 1 | . 1 . . . Unknown Exits Taken 3 | 1 . 1 1 . Scrap Searched 4 | . . . . 4 Spaces Dug . | . . . . . Terrain Destroyed . | . . . . . Melee . | . . . . . Projectile . | . . . . . AOE . | . . . . . Terrain Rammed . | . . . . . Walls Destroyed . | . . . . . Machines Disabled . | . . . . . Actions | -11 -10 -10 -10 -9 --------- Run | Yrd Mat Min Exi Min Total 1385 | 54 300 53 521 457 Wait 13 | . 5 . . 8 Move 1265 | 39 262 53 515 396 Hop . | . . . . . Pick Up 20 | 9 6 . 2 3 Fast Attach 2 | . 1 . . 1 Attach 12 | 6 1 . 1 4 Detach . | . . . . . Swap 3 | . 1 . 1 1 Drop 7 | . 1 . 1 5 Fire 63 | . 23 . 1 39 Melee . | . . . . . Ram . | . . . . . Kick . | . . . . . Crush . | . . . . . Escape Stasis . | . . . . . Rewire . | . . . . . Trap . | . . . . . Miscellaneous . | . . . . . Route ------- -11/Scrapyard -10/Materials (discovered 2 exits: [*Mat] / *Min) -10/Mines -10/Exiles (discovered 2 exits: [*Min x2]) -9/Mines History --------- Turn | Location | Event 2 | -11/Scrapyard | Met Revision 17 26 | -11/Scrapyard | Discovered new exit (range 15) 81 | -11/Scrapyard | Entered Materials 126 | -10/Materials | Identified exit to Mines 318 | -10/Materials | Build established: Mutant 491 | -10/Materials | Discovered new exit (range 10) 585 | -10/Materials | Entered Mines 594 | -10/Mines | Met a Derelict bent on vengeance 617 | -10/Mines | Deemed a non-threat by the Exiles lab entrance 617 | -10/Mines | Discovered new exit (range 5) 670 | -10/Mines | Entered Exiles 697 | -10/Exiles | Discovered new exit (range 15) 721 | -10/Exiles | Met 8R-AWN 741 | -10/Exiles | Met EX-HEX 838 | -10/Exiles | Met EX-DEC 869 | -10/Exiles | Visited The Gauntlet 1094 | -10/Exiles | Discovered new exit (range 14) 1207 | -10/Exiles | Met EX-BIN 1238 | -10/Exiles | Aligned with FarCom system 1239 | -10/Exiles | Given EX-Vault access code 1282 | -10/Exiles | Opened EX-Vault 1294 | -10/Exiles | Found Cloak of Protection 1325 | -10/Exiles | Warned to stay clear of 0b10 Research branches 1502 | -10/Exiles | Left Exiles lab with Cloak of Protection 1502 | -10/Exiles | Entered Mines 1505 | -9/Mines | Received a Mining Laser from a helpful Derelict 1599 | -9/Mines | Learned 2 Materials zone layouts 1743 | -9/Mines | Assembled infested the area 1748 | -9/Mines | Assisted by a Guerilla fighting off Assembled 1839 | -9/Mines | Core integrity fell below 50% 1948 | -9/Mines | Lost 5 parts (1p1n3w) 1993 | -9/Mines | Core integrity fell below 20% 2037 | -9/Mines | Destroyed by as-37037 with Assembled Blade Last Messages --------------- 02013_ Searching scrap... 02013_ Found Signal Interpreter. 02013_ Found 49 Matter. 02013_ Found 40 Matter. 02014_ Acquired Signal Interpreter. 02015_ Acquired 40 matter. 02016_ Acquired 49 matter. 02016_ Searching scrap... 02016_ Found Weapon Shielding. 02016_ Found Imp. Targeting Computer. 02016_ Found 37 Matter. 02017_ Acquired 37 matter. 02029_ Searching scrap... 02029_ Found 45 Matter. 02029_ Found Sml. Matter Pod. 02029_ Found Visual Processing Unit. 02029_ Found Hcp. Storage Unit. 02029_ Found 50 Matter. 02030_ Acquired 4 matter. 02032_ Sml. Laser destroyed. Map ----- +----------------------------------------------------+ | ?# #??????????????????#!#??## #??? | | ?# #??????????????????# #?## #??? | | ?# #??????????????????# #?# " ##??? | | ?? ???????????####????# #?# ##???? | | ?? ?????????## ##???# #?## #????? | | ?? ?????????# #???# #??## #???? | | ?? ?????????# ????# #???## #???? | | ?? ?????????# ??#### #????####???? | | ?? ????????## #??# #???????????? | | ?? ?????#### #??# ####???????????? | | ???????## #???# #??????????????? | | ???????# #####!#??????????????? | | ???????# !#??????????????? | | ???????## #######??????????????? | | ????????## #????????????????????? | | ????????## #????????????????????? | | ????### ##????????????????????? | | !## ##????????????????????? | | # =%= ##########???????????? | | ## = a ##??????????? | | ?# ### #??????????? | | ?# #??## #??????????? | | ?# ????# =%| %= #??????????? | | ?## ?????# ##?????????? | | ??##?????## ##????????? | | ????????## @ ##???????? | | ???????## aa ##??????? | | ??????## ### ##?????? | | ?????## ##?### ##????? | | ?????# !% ##???## #????? | | ?????# %! #????# #????? | | ?????# ! #???# ##????? | | ?????## ## #???## ##?????? | | ??????####?## #????#####??????? | | ????????????# ##???????????????? | | ????????????## ####????????????????? | | ?????????????####???????????????????? | | ????????????????????????????????????? | | ????????????????????????????????????? | | ????????????????????????????????????? | | | | | | | | | | | | | | | | | | | | | +----------------------------------------------------+ Best States ------------- Heat Dissipation 25 Energy Generation 10 Energy Capacity 250 Matter Stores 300 Matter Capacity 300 Sight Range 16 Terrain Scan Density 10 Armor Coverage 150 Evasion (%) 50 Recoil Reduction 2 Item Schematics ----------------- None Robot Schematics ------------------ None Fabricated ------------ Nothing Repaired ---------- Nothing Studied --------- None Alien Tech Used ----------------- None Achievements -------------- Bumper Bots Challenges ------------ None Game ------ Seed PowerLargeReconfigurator Manual? 0 Play Time 00:24:05 Cumulative 20.2 hours Start 2026.04.24 @ 06:49:26 End 2026.04.24 @ 07:12:37 Sessions 1 Manual Loads 0 Difficulty Rogue Special Mode None Game No. 27 Rogue 27 Adventurer 0 Explorer 0 Win Type - Total 0 Types 0/0/0/0/0/0/0/0/0/0 Lore% 12 Gallery% 26 Achievement% 23 Wizard Run 0 Options --------- Layout 1 ASCII 0 Keyboard 0 Movement Mouse Keybinds 0 Fullscreen 2 Font 24/Smallcaps Map View 50x35 Zoom Use 0% Tactical HUD 1 Map Filters NONE Filters NONE Steam 1 RUN: 93b7f368-b50c-4938-8d5f-b36466a5e89f